fUSD/lending_fUSD_20250421
["ID","MTS","AMOUNT","RATE_DAILY","PERIOD"]
[358532763,1745237452823,-500.0,0.00048869,7]
[358532764,1745237452833,-2344.97,0.00048869,7]
[358532765,1745237452843,-500.0,0.0004887,7]
[358532766,1745237452853,-1183.99,0.0004887,7]
[358532767,1745237452863,-500.0,0.0004887,7]
[358532768,1745237452873,-500.0,0.0004887,7]
[358532769,1745237452883,-500.0,0.0004887,7]
[358532770,1745237452894,-512.49006816,0.0004887,7]
[358532771,1745237452903,-500.0,0.0004887,7]
[358532772,1745237452913,-339.17484885,0.0004887,7]
[358532773,1745237452923,-500.0,0.0004887,7]
[358532774,1745237452932,-1019.44,0.0004887,2]
[358532775,1745237452942,-1019.44,0.0004887,2]
[358532776,1745237452952,-1019.44,0.0004887,2]
[358532777,1745237452962,-1019.44,0.0004887,2]
[358532778,1745237452974,-1019.44,0.0004887,2]
[358532779,1745237452984,-1019.44,0.0004887,2]
[358532780,1745237452994,-1019.44,0.0004887,2]
[358532781,1745237453004,-1019.67466148,0.0004887,2]
[358532782,1745237453014,-500.0,0.0004887,7]
[358532783,1745237453024,-500.0,0.0004887,7]
[358532784,1745237453035,-226.19695539,0.0004887,7]
[358532785,1745237453045,-972.51,0.0004887,7]
[358532786,1745237453054,-2344.97,0.0004887,7]
[358532787,1745237453067,-2344.97,0.0004887,7]
[358532788,1745237453077,-2344.97,0.0004887,7]
[358532789,1745237453087,-2344.97,0.0004887,7]
[358532790,1745237453096,-2344.97,0.0004887,7]
[358532791,1745237453107,-2344.97,0.0004887,7]
[358532792,1745237453117,-2344.97,0.0004887,7]
[358532793,1745237453126,-2344.97,0.0004887,7]
[358532794,1745237453136,-2344.97,0.0004887,7]
[358532795,1745237453146,-2345.1650256,0.0004887,7]
[358532796,1745237453157,-1259.64,0.0004887,7]
[358532797,1745237453170,-500.0,0.00048871,7]
[358532798,1745237453181,-500.0,0.00048871,7]
[358532799,1745237453190,-636.02418257,0.00048871,7]
[358532800,1745237453200,-500.0,0.00048871,7]
[358532801,1745237453211,-500.0,0.00048871,7]
[358532802,1745237453224,-500.0,0.00048871,7]
[358532803,1745237453234,-500.0,0.00048871,7]
[358532804,1745237453245,-500.0,0.00048871,7]
[358532805,1745237453345,-500.0,0.00048871,7]
[358532806,1745237453356,-500.0,0.00048871,7]
[358532807,1745237453366,-500.0,0.00048871,7]
[358532808,1745237453376,-500.0,0.00048871,7]
[358532809,1745237453386,-500.0,0.00048871,7]
[358532810,1745237453395,-464.69040823,0.00048871,7]
[358532811,1745237453405,-290.48030672,0.00048871,7]
[358532812,1745237453415,-846.12,0.00048871,7]
[358532813,1745237453424,-846.12,0.00048871,7]
[358532814,1745237453433,-846.12,0.00048871,7]
[358532815,1745237453443,-846.12,0.00048871,7]
[358532816,1745237453451,-846.12,0.00048871,7]
[358532817,1745237453461,-846.12,0.00048871,7]
[358532818,1745237453472,-846.12,0.00048871,7]
[358532819,1745237453481,-846.12,0.00048871,7]
[358532820,1745237453490,-846.12,0.00048871,7]
[358532821,1745237453499,-846.12,0.00048871,7]
[358532822,1745237453508,-846.12,0.00048871,7]
[358532823,1745237453518,-846.18630586,0.00048871,7]
[358532824,1745237453527,-500.0,0.00048871,7]
[358532825,1745237453536,-500.0,0.00048871,7]
[358532826,1745237453545,-500.0,0.00048871,7]
[358532827,1745237453555,-500.0,0.00048871,7]
[358532828,1745237453565,-500.0,0.00048871,7]
[358532829,1745237453575,-498.58127913,0.00048871,7]
[358532830,1745237453584,-500.0,0.00048871,7]
[358532831,1745237453593,-500.0,0.00048871,7]
[358532832,1745237453603,-500.0,0.00048871,7]
[358532833,1745237453612,-329.79473674,0.00048871,7]
[358532834,1745237453621,-1183.99,0.00048871,7]
[358532835,1745237453631,-1183.99,0.00048871,7]
[358532836,1745237453640,-1183.99,0.00048871,7]
[358532837,1745237453649,-1183.99,0.00048871,7]
[358532838,1745237453659,-1183.99,0.00048871,7]
[358532839,1745237453669,-1183.99,0.00048871,7]
[358532840,1745237453679,-1183.99,0.00048871,7]
[358532841,1745237453689,-1183.99,0.00048871,7]
[358532842,1745237453699,-1183.99,0.00048871,7]
[358532843,1745237453708,-1183.99,0.00048871,7]
[358532844,1745237453719,-1183.99,0.00048871,7]
[358532845,1745237453729,-1184.20382549,0.00048871,7]
[358532846,1745237453738,-500.0,0.00048871,7]
[358532847,1745237453748,-569.71882921,0.00048871,7]
[358532848,1745237453758,-500.0,0.00048871,7]
[358532849,1745237453767,-500.0,0.00048871,7]
[358532850,1745237453776,-500.0,0.00048871,7]
[358532851,1745237453785,-500.0,0.00048871,7]
[358532852,1745237453795,-500.0,0.00048871,7]
[358532853,1745237453804,-500.0,0.00048871,7]
[358532854,1745237453814,-500.0,0.00048871,7]
[358532855,1745237453825,-600.95619836,0.00048871,7]
[358532856,1745237453835,-500.0,0.00048871,7]
[358532857,1745237453845,-500.0,0.00048871,7]
[358532858,1745237453855,-500.0,0.00048871,7]
[358532859,1745237453864,-226.2480147,0.00048871,7]
[358532860,1745237453874,-1000.0,0.00048871,7]
[358532861,1745237453883,-1000.0,0.00048871,7]
[358532862,1745237453893,-1000.0,0.00048871,7]
[358532863,1745237453902,-1000.0,0.00048871,7]
[358532864,1745237453912,-579.36476211,0.00048871,7]
[358532865,1745237453921,-500.0,0.00048871,7]
[358532866,1745237453930,-643.94876752,0.00048871,7]
[358532867,1745237453940,-500.0,0.00048871,7]
[358532868,1745237453951,-299.93247791,0.00048871,7]
[358532869,1745237453961,-674.61,0.00048871,7]
[358532870,1745237453972,-674.61,0.00048871,7]
[358532871,1745237453981,-674.61,0.00048871,7]
[358532872,1745237453991,-674.61,0.00048871,7]
[358532873,1745237454000,-674.61,0.00048871,7]
[358532874,1745237454009,-674.61,0.00048871,7]
[358532875,1745237454018,-674.61,0.00048871,7]
[358532876,1745237454028,-674.61,0.00048871,7]
[358532877,1745237454038,-674.61,0.00048871,7]
[358532878,1745237454047,-674.61,0.00048871,7]
[358532879,1745237454057,-674.61,0.00048871,7]
[358532880,1745237454066,-674.72019271,0.00048871,7]
[358532881,1745237454076,-500.0,0.00048871,7]
[358532882,1745237454086,-500.0,0.00048871,7]
[358532883,1745237454096,-500.0,0.00048871,7]
[358532884,1745237454107,-500.0,0.00048871,7]
[358532885,1745237454116,-500.0,0.00048871,7]
[358532886,1745237454126,-500.0,0.00048871,7]
[358532887,1745237454138,-500.0,0.00048871,7]
[358532888,1745237454148,-500.0,0.00048871,7]
[358532889,1745237454158,-500.0,0.00048871,7]
[358532890,1745237454171,-500.0,0.00048871,7]
[358532891,1745237454181,-500.0,0.00048871,7]
[358532892,1745237454191,-500.0,0.00048871,7]
[358532893,1745237454200,-500.0,0.00048871,7]
[358532894,1745237454211,-599.5512867,0.00048871,7]
[358532895,1745237454223,-821.72,0.00048871,7]
[358532896,1745237454232,-821.72,0.00048871,7]
[358532897,1745237454242,-821.72,0.00048871,7]
[358532898,1745237454253,-821.72,0.00048871,7]
[358532899,1745237454263,-821.72,0.00048871,7]
[358532900,1745237454273,-821.72,0.00048871,7]
[358532901,1745237454282,-821.72,0.00048871,7]
[358532902,1745237454292,-821.72,0.00048871,7]
[358532903,1745237454302,-821.72,0.00048871,7]
[358532904,1745237454311,-821.72,0.00048871,7]
[358532905,1745237454320,-821.72,0.00048871,7]
[358532906,1745237454330,-821.72,0.00048871,7]
[358532907,1745237454340,-821.72,0.00048871,7]
[358532908,1745237454349,-821.72,0.00048871,7]
[358532909,1745237454359,-821.75183028,0.00048871,7]
[358532910,1745237454368,-500.0,0.00048871,7]
[358532911,1745237454378,-500.0,0.00048871,7]
[358532912,1745237454387,-500.0,0.00048871,7]
[358532913,1745237454396,-500.0,0.00048871,7]
[358532914,1745237454406,-715.44,0.00048871,7]
[358532915,1745237454416,-715.44,0.00048871,7]
[358532916,1745237454426,-715.44,0.00048871,7]
[358532917,1745237454436,-715.44,0.00048871,7]
[358532918,1745237454446,-715.44,0.00048871,7]
[358532919,1745237454455,-715.44,0.00048871,7]
[358532920,1745237454468,-715.44,0.00048871,7]
[358532921,1745237454481,-715.44,0.00048871,7]
[358532922,1745237454493,-715.44,0.00048871,7]
[358532923,1745237454504,-715.44,0.00048871,7]
[358532924,1745237454515,-715.44,0.00048871,7]
[358532925,1745237454526,-715.44,0.00048871,7]
[358532926,1745237454537,-715.44,0.00048871,7]
[358532927,1745237454547,-715.44,0.00048871,7]
[358532928,1745237454558,-715.62,0.00048871,7]
[358532929,1745237454569,-1240.15,0.00048871,7]
[358532930,1745237454580,-1240.15,0.00048871,7]
[358532931,1745237454590,-1240.15,0.00048871,7]
[358532932,1745237454600,-1240.15,0.00048871,7]
[358532933,1745237454611,-1240.15,0.00048871,7]
[358532934,1745237454621,-1240.15,0.00048871,7]
[358532935,1745237454630,-1240.15,0.00048871,7]
[358532936,1745237454640,-1240.15,0.00048871,7]
[358532937,1745237454649,-1240.15,0.00048871,7]
[358532938,1745237454659,-1240.15,0.00048871,7]
[358532939,1745237454668,-1240.15,0.00048871,7]
[358532940,1745237454678,-1240.15,0.00048871,7]
[358532941,1745237454688,-1240.15,0.00048871,7]
[358532942,1745237454697,-1240.15,0.00048871,7]
[358532943,1745237454707,-1240.24875665,0.00048871,7]
[358532944,1745237454719,-1170.6,0.00048871,7]
[358532945,1745237454728,-1170.6,0.00048871,7]
[358532946,1745237454738,-1170.6,0.00048871,7]
[358532947,1745237454747,-1170.6,0.00048871,7]
[358532948,1745237454757,-1170.6,0.00048871,7]
[358532949,1745237454766,-1170.6,0.00048871,7]
[358532950,1745237454776,-500.0,0.00048871,7]
[358532951,1745237454786,-1170.6,0.00048871,7]
[358532952,1745237454795,-500.0,0.00048871,7]
[358532953,1745237454804,-1170.6,0.00048871,7]
[358532954,1745237454814,-543.66978992,0.00048871,7]
[358532955,1745237454823,-1170.6,0.00048871,7]
[358532956,1745237454832,-1170.6,0.00048871,7]
[358532957,1745237454841,-1170.6,0.00048871,7]
[358532958,1745237454851,-1170.6,0.00048871,7]
[358532959,1745237454860,-1170.6,0.00048871,7]
[358532960,1745237454870,-1170.6,0.00048871,7]
[358532961,1745237454880,-1170.70029806,0.00048871,7]
[358532962,1745237454891,-500.0,0.00048871,7]
[358532963,1745237454901,-500.0,0.00048871,7]
[358532964,1745237454911,-500.0,0.00048871,7]
[358532965,1745237454921,-458.83118905,0.00048871,7]
[358532966,1745237454931,-500.0,0.00048871,7]
[358532967,1745237454941,-500.0,0.00048871,7]
[358532968,1745237454951,-500.0,0.00048871,7]
[358532969,1745237454962,-500.0,0.00048871,7]
[358532970,1745237454973,-500.0,0.00048871,7]
[358532971,1745237454983,-259.26518566,0.00048871,7]
[358532972,1745237454993,-133782.37,0.00048871,7]
[358532973,1745237455002,-133782.37,0.00048871,7]
[358532974,1745237455012,-47221.30678572,0.00048871,7]
[358532975,1745237456069,-492.29036286,0.00046865,2]
[358532976,1745237456079,-229.41499577,0.00046865,7]
[358532977,1745237456089,-380.07904311,0.00048412,26]
[358532978,1745237456099,-500.0,0.00048866,7]
[358532979,1745237456110,-500.0,0.0004887,7]
[358532980,1745237456120,-9711.56376298,0.00048871,7]
[358532981,1745237456227,-213.73,0.00048734,120]
[358532982,1745237456236,-55.257887,0.00048871,7]
[358532983,1745237456250,-318.8803487,0.00048871,7]
[358532984,1745237456262,-297.32939999,0.00048871,7]
[358532985,1745237456277,-3857.10834733,0.00048871,7]
[358532986,1745237522382,-151.0,0.00038445,2]
[358532987,1745237522405,-1.88609788,0.00038445,2]
[358532988,1745237698835,-238.97642166,0.00045,90]
[358532989,1745237844484,-150.0,0.00033057,2]
[358532990,1745237845092,-9000000.0,0.00049057,30]
[358532991,1745237849070,-9000000.0,0.00049057,30]
[358532992,1745237856984,-9000000.0,0.00049057,30]
[358532993,1745237866105,-9000000.0,0.00049057,30]
[358532995,1745237897189,-160.96751685,0.00045,90]
[358532996,1745237940912,-250.0,0.00045,90]
[358532997,1745238004957,-234.4724369,0.00036363,2]
[358532998,1745238019145,-219.0309247,0.00045,120]
[358532999,1745238063435,-234.55848774,0.00043799,5]
[358533000,1745238151556,-234.558488,0.00043799,5]
[358533001,1745238199739,-9000000.0,0.00049057,30]
[358533002,1745238204508,-9000000.0,0.00049057,30]
[358533003,1745238208858,-9000000.0,0.00049057,30]
[358533004,1745238230154,-15.5275631,0.00036363,2]
[358533005,1745238230177,-232.28216712,0.00036912,2]
[358533006,1745238242483,-17.71783288,0.00036912,2]
[358533007,1745238242507,-201.33696712,0.00037461,2]
[358533008,1745238246660,-152.8785392,0.00037461,2]
[358533009,1745238308819,54025.67639122,0.0002,2]
[358533010,1745238308855,2000.0,0.0002,2]
[358533011,1745238308885,2000.0,0.0002,2]
[358533012,1745238308920,2000.0,0.0002,2]
[358533013,1745238308951,2000.0,0.0002,2]
[358533014,1745238308983,2000.0,0.0002,2]
[358533015,1745238309016,700.0,0.0002,2]
[358533016,1745238309041,200000.0,0.0002,2]
[358533017,1745238309071,5964122.8883966,0.0002,2]
[358533018,1745238309102,15000.0,0.0002,2]
[358533019,1745238317856,-479.9358012,0.0002,2]
[358533020,1745238323031,-208.4348788,0.0002,2]
[358533021,1745238335385,-296.0742,0.000199,2]
[358533022,1745238342109,-335.4229,0.000199,2]
[358533023,1745238343540,-9000000.0,0.00048839,30]
[358533024,1745238346294,-85.429606,0.000199,2]
[358533025,1745238346322,-65.570394,0.0002,2]
[358533026,1745238346909,-4140841.37128364,0.00048839,30]
[358533027,1745238346936,-576.96819272,0.00048839,30]
[358533028,1745238346963,-555.10915413,0.00048839,30]
[358533029,1745238346995,-1000.0,0.00048839,30]
[358533030,1745238347020,-1394.15,0.00048839,30]
[358533031,1745238347046,-585.8254201,0.00048839,120]
[358533032,1745238347073,-244.71781708,0.00048839,120]
[358533033,1745238347099,-207.0,0.00048839,30]
[358533034,1745238347124,-207.0,0.00048839,30]
[358533035,1745238347150,-722.11254679,0.00048839,60]
[358533036,1745238347176,-150.0,0.00048839,30]
[358533037,1745238347201,-39915.0,0.00048839,45]
[358533038,1745238347228,-564.30579461,0.00048839,120]
[358533039,1745238347254,-706.17249043,0.00048839,30]
[358533040,1745238347636,1695.19731476,0.00048839,30]
[358533041,1745238355359,-291.90028563,0.000199,2]
[358533042,1745238358940,104534.57989499,0.00048839,30]
[358533043,1745238365131,-156.21971437,0.00019863,2]
[358533044,1745238373563,-150.0,0.000381,14]
[358533045,1745238376815,-312.28284521,0.00019863,2]
[358533046,1745238389951,-239.59715479,0.00019863,2]
[358533047,1745238398578,-203.47432857,0.00019863,2]
[358533048,1745238408468,444.67667887,0.000199,3]
[358533049,1745238411596,-272.43333876,0.00019763,2]
[358533050,1745238416877,-178.5515,0.00019763,2]
[358533051,1745238426543,-180.51226124,0.00019763,2]
[358533052,1745238426568,-5.60739693,0.00019863,2]
[358533053,1745238431905,-157.5804,0.00019863,2]
[358533054,1745238433704,10000.0,0.000192,7]
[358533055,1745238435800,20100.0,0.000193,7]
[358533056,1745238435883,-191.43476124,0.00019863,2]
[358533057,1745238437965,30100.0,0.000194,7]
[358533058,1745238440069,39355.32332113,0.000195,7]
[358533059,1745238440096,844.67667887,0.000195,7]
[358533060,1745238442901,-151.13832585,0.000196,7]
[358533061,1745238452181,-319.95652451,0.000196,7]
[358533062,1745238453151,-167.95652451,0.000196,7]
[358533063,1745238459901,-176.4783,0.000196,7]
[358533064,1745238473570,450.0,0.00017,2]
[358533065,1745238474665,500.0,0.00019,2]
[358533066,1745238480972,-291.66514255,0.000196,7]
[358533067,1745238485195,-184.75630676,0.000196,7]
[358533068,1745238492130,-155.9997442,0.000196,7]
[358533069,1745238497002,-300.0,0.000196,7]
[358533070,1745238512507,-167.8687,0.000196,7]
[358533071,1745238523092,164.71305352,0.00028799,120]
[358533072,1745238525317,-279.57791807,0.000196,7]
[358533073,1745238525903,358.17563537,0.00032,120]
[358533074,1745238530209,-194.42542069,0.000196,7]
[358533075,1745238532943,344.0620529,0.0001901,7]
[358533076,1745238533516,-218.29330747,0.000196,7]
[358533077,1745238537692,-152.0,0.000196,7]
[358533078,1745238549534,-250.0,0.000196,7]
[358533079,1745238589746,-153.22839253,0.000196,7]
[358533080,1745238600913,-700.0,0.000196,7]
[358533081,1745238606644,-268.89525197,0.00019599,2]
[358533082,1745238609995,-31.10474803,0.00019599,2]
[358533083,1745238610020,-125.52053232,0.00019599,2]
[358533084,1745238614965,-154.9188,0.00019599,2]
[358533085,1745238617697,-19.56066768,0.00019599,2]
[358533086,1745238617721,-135.35813232,0.000196,7]
[358533093,1745238631558,-46301.29726054,0.000196,7]
[358533094,1745238631568,-10000.0,0.000197,7]
[358533095,1745238631578,-10000.0,0.000198,7]
[358533096,1745238631588,-1908.80339889,0.00019863,2]
[358533097,1745238631598,-566.96587752,0.000199,2]
[358533098,1745238631607,-10000.0,0.000199,7]
[358533099,1745238631617,-8634.4832376,0.000199,2]
[358533100,1745238631626,-889.35335772,0.000199,3]
[358533101,1745238631636,-165.90125611,0.000199,2]
[358533102,1745238631645,-848.33684372,0.000199,2]
[358533103,1745238631654,-4152.0,0.00019945,2]
[358533104,1745238631664,-500.0,0.00019973,2]
[358533105,1745238631673,-500.0,0.00019973,2]
[358533106,1745238631682,-500.0,0.00019973,2]
[358533107,1745238631691,-500.0,0.00019973,2]
[358533108,1745238631700,-155.01,0.0001999,2]
[358533109,1745238631709,-155.01,0.0001999,2]
[358533110,1745238631719,-155.01,0.0001999,2]
[358533111,1745238631728,-155.01,0.0001999,2]
[358533112,1745238631738,-155.01,0.0001999,2]
[358533113,1745238631747,-155.01,0.0001999,2]
[358533114,1745238631756,-155.01,0.0001999,2]
[358533115,1745238631766,-155.01,0.0001999,2]
[358533116,1745238631776,-155.01,0.0001999,2]
[358533117,1745238631785,-155.01,0.0001999,2]
[358533118,1745238631794,-155.01,0.0001999,2]
[358533119,1745238631803,-155.01,0.0001999,2]
[358533120,1745238631813,-155.01,0.0001999,2]
[358533121,1745238631822,-155.01,0.0001999,2]
[358533122,1745238631831,-155.01,0.0001999,2]
[358533123,1745238631840,-155.01,0.0001999,2]
[358533124,1745238631850,-155.01,0.0001999,2]
[358533125,1745238631859,-155.01,0.0001999,2]
[358533126,1745238631868,-155.01,0.0001999,2]
[358533127,1745238631878,-155.01,0.0001999,2]
[358533128,1745238631887,-155.01,0.0001999,2]
[358533129,1745238631896,-155.01,0.0001999,2]
[358533130,1745238631905,-155.01,0.0001999,2]
[358533131,1745238631914,-155.01,0.0001999,2]
[358533132,1745238631923,-155.01,0.0001999,2]
[358533133,1745238631933,-506.74691144,0.0001999,2]
[358533134,1745238631943,-506.74691144,0.0001999,2]
[358533135,1745238631952,-506.74691144,0.0001999,2]
[358533136,1745238631962,-500.0,0.00019999,2]
[358533137,1745238631971,-261.1995445,0.00019999,2]
[358533139,1745238631980,-424.38734791,0.00019999,2]
[358533141,1745238631989,-253510.41712964,0.0002,2]
[358533142,1745238632004,-425.41160242,0.0002,2]
[358533298,1745238633923,-199.145803,0.0002,2]
[358533300,1745238637579,-23779.37880857,0.0002,2]
[358533301,1745238637638,-6942.80082157,0.0002,2]
[358533302,1745238637747,-1072286.73039331,0.0002,2]
[358533303,1745238637804,-2168.03617296,0.0002,2]
[358533304,1745238637968,-130831.8790589,0.0002,2]
[358533349,1745238638647,-212.19885,0.0002,2]
[358533517,1745238640223,-43647.5,0.0002,2]
[358533519,1745238640234,-4466981.8538957,0.0002,2]
[358533530,1745238640332,-8581.27700069,0.0002,2]
[358533533,1745238640343,-43671.25183438,0.0002,2]
[358533762,1745238642740,-2900.71746466,0.0002,2]
[358533773,1745238642859,-4965.80372208,0.0002,2]
[358533834,1745238643613,-1306.87665588,0.0002,2]
[358534025,1745238645586,-73088.71882139,0.0002,2]
[358534030,1745238645635,-312.00418456,0.0002,2]
[358534032,1745238645647,-843.99315001,0.0002,2]
[358534040,1745238645715,-1851078.94278101,0.0002,2]
[358534216,1745238647539,-9046904.17003305,0.0002,2]
[358534218,1745238647551,-20147.26043207,0.0002,2]
[358534220,1745238647562,-10000.0,0.0002,2]
[358534222,1745238647571,-4297.92559757,0.0002,2]
[358534223,1745238647580,-1408.48165255,0.0002,5]
[358534225,1745238647590,-8767.13203376,0.0002,2]
[358534915,1745238657200,-247.33034386,0.000199,2]
[358534916,1745238666760,-180.06997504,0.000199,2]
[358534917,1745238672594,-170.4,0.000199,2]
[358534918,1745238673655,3800.0,0.000192,7]
[358534919,1745238675752,7600.0,0.000193,7]
[358534920,1745238677854,11400.0,0.000194,7]
[358534921,1745238679943,15200.0,0.000195,7]
[358534922,1745238682704,-204.449296,0.000196,7]
[358534923,1745238686893,-165.1517837,0.000196,7]
[358534924,1745238705755,-209.53867822,0.000196,7]
[358534925,1745238735653,-152.0,0.000196,7]
[358534926,1745238741630,-163.63364825,0.000196,7]
[358534927,1745238753420,-151.0,0.000196,7]
[358534928,1745238757454,-251.25034667,0.000196,7]
[358534929,1745238782156,-226.100736,0.00019599,2]
[358534930,1745238790354,-73.899264,0.00019599,2]
[358534931,1745238790377,-90.45420973,0.000196,7]
[358534932,1745238796511,-171.20058739,0.000195,2]
[358534933,1745238796536,-133.30102088,0.000196,7]
[358534934,1745238812448,-157.03852194,0.000196,7]
[358534935,1745238829577,-158.82036269,0.000196,7]
[358534936,1745238844258,-252.01111537,0.00019599,2]
[358534937,1745238850068,-27.98888463,0.00019599,2]
[358534938,1745238850093,-124.01111537,0.000196,7]
[358534939,1745238855845,-214.85753708,0.000196,7]
[358534940,1745238872059,-242.55756673,0.000196,7]
[358534941,1745238927155,-157.98264617,0.000196,7]
[358534942,1745238939414,-150.0,0.000196,7]
[358534943,1745238944138,-460.57,0.000196,7]
[358534944,1745238950562,-192.441916,0.000196,7]
[358534945,1745238961860,-254.30240261,0.00019467,2]
[358534946,1745238967916,-276.59525574,0.00019467,2]
[358534947,1745238973392,-494.97705757,0.00019467,2]
[358534948,1745238981375,-216.94101419,0.00019467,2]
[358534949,1745239035732,-152.0,0.00019369,2]
[358534950,1745239036855,-125.871522,0.00019369,2]
[358534951,1745239036877,-26.128478,0.0001937,2]
[358534952,1745239079205,-125.00984785,0.0001937,2]
[358534953,1745239079229,-29.96108584,0.00019467,2]
[358534954,1745239082789,829.64,0.0001904,2]
[358534955,1745239091548,185.25,0.0001904,2]
[358534956,1745239091770,185.25,0.0002856,120]
[358534957,1745239093942,-152.0,0.00019467,2]
[358534958,1745239097556,-282.57993476,0.00019467,2]
[358534959,1745239111037,-251.92214903,0.00019467,2]
[358534960,1745239117285,2769.82598804,0.00018967,2]
[358534961,1745239117308,4734.71598804,0.00018967,2]
[358534962,1745239117331,4734.71598804,0.00018967,2]
[358534963,1745239117357,13355.13203588,0.00018967,2]
[358534964,1745239143556,-66.67110026,0.00019467,2]
[358534965,1745239143583,-122.89830774,0.00019599,2]
[358534966,1745239153870,-177.10169226,0.00019599,2]
[358534967,1745239153894,-73.63644524,0.000196,7]
[358534968,1745239177937,-216.94101419,0.000196,7]
[358534969,1745239179469,-160.75310685,0.000196,7]
[358534970,1745239203866,-202.13068104,0.000196,7]
[358534971,1745239205869,300.0,0.0001895,2]
[358534972,1745239267999,1487.2,0.00017033,2]
[358534973,1745239269010,-179.28713602,0.00019297,2]
[358534974,1745239271694,150.0,0.00018951,7]
[358534975,1745239288442,200.0,0.00018921,2]
[358534976,1745239319958,-1307.91286398,0.00019297,2]
[358534977,1745239319982,-14967.48010325,0.000196,7]
[358534978,1745239320004,-216.94101419,0.000196,2]
[358534979,1745239320027,-250.0,0.000196,2]
[358534980,1745239320051,-3800.0,0.000197,7]
[358534981,1745239320073,-500.0,0.00019719,2]
[358534982,1745239320097,-3800.0,0.000198,7]
[358534983,1745239320119,-566.96587752,0.000198,2]
[358534984,1745239320142,-2271.905,0.000198,2]
[358534985,1745239320165,-165.90125611,0.000198,2]
[358534986,1745239320187,-14726.17486589,0.00019801,2]
[358534987,1745239320210,-4706.94,0.00019811,2]
[358534988,1745239320235,-8642.68290331,0.00019811,2]
[358534989,1745239320258,-8642.68290331,0.00019822,2]
[358534990,1745239320283,-8642.68290331,0.00019833,2]
[358534991,1745239320310,-8642.68290331,0.00019844,2]
[358534992,1745239320334,-8642.68290331,0.00019856,2]
[358534993,1745239320359,-8642.68290331,0.00019867,2]
[358534994,1745239320381,-500.0,0.00019873,2]
[358534995,1745239320403,-500.0,0.00019873,2]
[358534996,1745239320426,-8642.68290331,0.00019878,2]
[358534997,1745239320450,-8642.68290331,0.00019889,2]
[358534998,1745239320473,-298.13812904,0.00019899,2]
[358534999,1745239320495,-424.38734791,0.00019899,2]
[358535000,1745239320519,-3800.0,0.000199,7]
[358535001,1745239320541,-372.1481371,0.000199,2]
[358535002,1745239320564,-8642.68290331,0.000199,2]
[358535003,1745239320585,-196.12183165,0.000199,2]
[358535004,1745239320607,-177.96834274,0.000199,2]
[358535005,1745239320629,-296.45111924,0.000199,3]
[358535006,1745239320650,-848.33684372,0.000199,2]
[358535007,1745239320673,-445.52227957,0.000199,2]
[358535008,1745239320697,-107316.5588583,0.000199,2]
[358535009,1745239322002,-202.82441493,0.00019599,2]
[358535010,1745239325145,-97.17558507,0.00019599,2]
[358535011,1745239325167,-250.0,0.0001975,2]
[358535012,1745239325189,-33462.20798159,0.000199,2]
[358535013,1745239325211,-500.0,0.00019905,2]
[358535014,1745239325233,-4152.0,0.00019973,2]
[358535015,1745239325255,-1909.0,0.00019973,2]
[358535016,1745239325277,-319.34433626,0.00019973,2]
[358535017,1745239325300,-500.0,0.00019973,2]
[358535018,1745239325421,-500.0,0.00019973,2]
[358535019,1745239325445,-500.0,0.00019973,2]